bitfinex/quotes_BTCUSD_20220307
["timestamp","ask_amount","ask_price","bid_price","bid_amount"]
[1646640647264,0.90349444,38074.0,38068.0,0.131336]
[1646640647464,0.39283,38072.0,38069.0,0.05]
[1646640647661,0.39283,38070.0,38067.0,0.05]
[1646640647871,0.39283,38065.0,38055.0,0.02622306]
[1646640648061,0.21818345,38063.0,38055.0,0.02622306]
[1646640648461,0.0011,38066.0,38062.0,0.001]
[1646640648664,0.24409581,38066.0,38062.0,0.001]
[1646640649170,0.15,38064.0,38062.0,0.001]
[1646640649365,0.71912365,38063.0,38062.0,0.001]
[1646640649562,0.87796453,38063.0,38050.0,0.00109944]
[1646640649763,0.17148516,38052.0,38050.0,0.00109944]
[1646640649962,0.15,38059.0,38050.0,0.00109944]
[1646640649963,0.39283,38051.0,38050.0,0.00109944]
[1646640650264,0.0262,38054.0,38050.0,0.00109944]
[1646640650464,0.1,38056.0,38050.0,0.00109944]
[1646640650904,0.2191499,38055.0,38050.0,0.00109944]
[1646640651306,0.31990924,38055.0,38050.0,0.00109944]
[1646640651804,0.1,38054.0,38050.0,0.00109944]
[1646640652005,0.39283,38053.0,38050.0,0.00109944]
[1646640652304,0.39283,38051.0,38050.0,0.00109944]
[1646640652504,0.0262,38047.0,38039.0,0.065746]
[1646640652705,0.0262,38047.0,38040.0,0.01440958]
[1646640652706,0.3,38047.0,38040.0,0.01440958]
[1646640652905,0.3,38049.0,38040.0,0.01440958]
[1646640653107,0.3,38049.0,38042.0,0.16508595]
[1646640653304,0.1,38050.0,38043.0,0.26703598]
[1646640653509,0.39370923,38055.0,38044.0,0.01162096]
[1646640653704,0.19198152,38052.0,38044.0,0.01162096]
[1646640653908,0.1,38054.0,38044.0,0.01162096]
[1646640654307,0.1,38054.0,38044.0,0.08002042]
[1646640654508,0.1,38054.0,38044.0,0.06162096]
[1646640654759,0.02642284,38055.0,38052.0,0.13344376]
[1646640654760,0.00022284,38055.0,38052.0,0.13344376]
[1646640654956,0.1,38058.0,38053.0,0.11999739]
[1646640655156,0.0262,38059.0,38053.0,0.06083139]
[1646640655357,0.21122641,38060.0,38053.0,0.12654639]
[1646640655556,0.39283,38059.0,38053.0,0.12654639]
[1646640655771,0.0707167,38054.0,38053.0,0.05]
[1646640655957,0.39283,38054.0,38053.0,0.05]
[1646640656358,0.19266204,38055.0,38053.0,0.05]
[1646640656557,0.4,38059.0,38053.0,0.05]
[1646640656759,0.39283,38058.0,38053.0,0.05]
[1646640656958,0.3,38057.0,38053.0,0.05]
[1646640657160,0.4,38057.0,38053.0,0.05]
[1646640657359,0.39283,38056.0,38052.0,0.00201476]
[1646640657557,0.1,38057.0,38052.0,0.00201476]
[1646640658406,0.39283,38058.0,38053.0,0.065718]
[1646640658603,0.39283,38058.0,38053.0,0.13666222]
[1646640658804,0.1,38057.0,38053.0,0.13666222]
[1646640659006,0.39283,38056.0,38053.0,0.13666222]
[1646640659304,0.1,38057.0,38053.0,0.13666222]
[1646640659506,0.39283,38056.0,38053.0,0.13790108]
[1646640659905,0.49283,38056.0,38053.0,0.13790108]
[1646640660104,0.1,38057.0,38053.0,0.13790108]
[1646640660306,0.39283,38061.0,38053.0,0.13790108]
[1646640660506,0.39283,38055.0,38053.0,0.11695686]
[1646640660706,0.21155612,38056.0,38053.0,0.11695686]
[1646640660707,0.39283,38054.0,38053.0,0.11695686]
[1646640661707,0.39283,38054.0,38053.0,0.08883426]
[1646640661708,0.49283,38054.0,38053.0,0.08883426]
[1646640661909,0.54573,38054.0,38053.0,0.00123886]
[1646640663049,0.49283,38054.0,38053.0,0.00123886]
[1646640663646,0.49283,38054.0,38053.0,0.05123886]
[1646640664050,0.0529,38059.0,38053.0,0.05123886]
[1646640664051,0.1,38064.0,38053.0,0.05123886]
[1646640664252,0.392781,38063.0,38053.0,0.35123886]
[1646640664447,0.392781,38062.0,38053.0,0.05123886]
[1646640664649,0.01313,38069.0,38054.0,0.3]
[1646640664849,0.1511,38077.0,38055.0,0.13168985]
[1646640664850,0.204,38077.0,38055.0,0.13168985]
[1646640665049,0.25284287,38070.0,38058.0,0.16330248]
[1646640665249,0.392781,38069.0,38060.0,0.065697]
[1646640665448,0.392781,38069.0,38061.0,0.02421571]
[1646640665653,0.418981,38069.0,38061.0,0.02421571]
[1646640665905,0.432101,38069.0,38061.0,0.02421571]
[1646640666111,0.1,38068.0,38063.0,0.01046684]
[1646640666305,0.392781,38067.0,38063.0,0.01046684]
[1646640667506,0.1,38066.0,38063.0,0.01046684]
[1646640667808,0.098589,38066.0,38063.0,0.01046684]
[1646640668006,0.39275,38068.0,38063.0,0.01046684]
[1646640668210,0.024758,38069.0,38063.0,0.01046684]
[1646640668507,0.202884,38068.0,38063.0,0.01046684]
[1646640669508,0.39275,38070.0,38065.0,0.00102007]
[1646640669748,0.39275,38070.0,38066.0,0.065698]
[1646640669949,0.39275,38070.0,38067.0,0.03840845]
[1646640670452,0.1,38075.0,38067.0,0.10410345]
[1646640670850,0.1262,38075.0,38067.0,0.10410345]
[1646640671251,0.21824209,38074.0,38067.0,0.10410345]
[1646640671648,0.15928244,38072.0,38067.0,0.10410345]
[1646640671851,0.1,38073.0,38067.0,0.10410345]
[1646640672249,0.1,38073.0,38067.0,0.03840845]
[1646640672651,0.25,38073.0,38067.0,0.03840845]
[1646640672850,0.0262,38072.0,38067.0,0.03840845]
[1646640673053,0.01312,38071.0,38067.0,0.03840845]
[1646640673257,0.43293642,38068.0,38067.0,0.03840845]
[1646640673521,0.17590963,38067.0,38065.0,0.00102007]
[1646640673721,0.56900475,38066.0,38065.0,0.00102007]
[1646640673926,0.0262,38064.0,38056.0,0.065735]
[1646640674124,0.0262,38061.0,38056.0,0.065735]
[1646640674319,0.27122794,38058.0,38057.0,0.04054287]
[1646640674519,0.25,38062.0,38057.0,0.04054287]
[1646640674520,0.15817741,38059.0,38058.0,0.3007627]
[1646640674720,0.43850886,38059.0,38058.0,0.3007627]
[1646640674921,0.55104315,38059.0,38058.0,0.3007627]
[1646640675519,0.65104315,38059.0,38058.0,0.3007627]
[1646640675721,0.70394315,38059.0,38058.0,0.3007627]
[1646640675918,0.70394315,38059.0,38058.0,0.3507627]
[1646640676319,1.00394315,38059.0,38058.0,0.3507627]
[1646640676923,1.00394315,38059.0,38053.0,0.26282]
[1646640676924,1.2262,38058.0,38053.0,0.26282]
[1646640677154,1.22126036,38059.0,38053.0,0.26282]
[1646640677155,0.06731721,38054.0,38053.0,0.26282]
[1646640677359,0.42021721,38054.0,38053.0,0.26282]
[1646640677556,0.1529,38054.0,38053.0,0.26282]
[1646640677755,0.7607,38059.0,38053.0,0.26282]
[1646640677756,0.01312,38057.0,38053.0,0.26282]
[1646640678058,0.1,38059.0,38053.0,0.56282]
[1646640678255,0.1262,38065.0,38056.0,0.065707]
[1646640678256,0.1,38065.0,38056.0,0.065707]
[1646640678456,0.1529,38069.0,38056.0,0.065707]
[1646640678656,0.5,38070.0,38056.0,0.065707]
[1646640678657,0.16383049,38060.0,38056.0,0.065707]
[1646640678859,0.16383049,38060.0,38058.0,0.065709]
[1646640679254,0.16383049,38060.0,38058.0,0.115709]
[1646640679555,0.17223049,38060.0,38058.0,0.1178653]
[1646640679758,0.36199068,38060.0,38058.0,0.1178653]
[1646640680156,0.0529,38059.0,38058.0,0.1178653]
[1646640680358,0.0529,38059.0,38058.0,0.0678653]
[1646640680359,0.4029,38059.0,38058.0,0.0678653]
[1646640680558,0.4029,38059.0,38058.0,0.0021563]
[1646640680756,0.41602,38059.0,38058.0,0.0021563]
[1646640681201,0.27442,38059.0,38058.0,0.0021563]
[1646640682002,0.17442,38059.0,38058.0,0.0021563]
[1646640682404,0.27442,38059.0,38058.0,0.0021563]
[1646640682608,0.2529,38059.0,38058.0,0.0021563]
[1646640682805,0.01332916,38060.0,38058.0,0.0021563]
[1646640683006,0.00020916,38060.0,38058.0,0.0021563]
[1646640683206,0.00020916,38060.0,38058.0,0.0521563]
[1646640683505,0.1,38064.0,38058.0,0.0521563]
[1646640683706,0.19296835,38060.0,38058.0,0.0021563]
[1646640684749,0.19296835,38060.0,38058.0,0.00109227]
[1646640684954,0.3,38059.0,38058.0,0.00109227]
[1646640685950,0.59452598,38059.0,38058.0,0.00109227]
[1646640686349,0.59752598,38059.0,38058.0,0.00109227]
[1646640686954,0.65042598,38059.0,38058.0,0.00109227]
[1646640687950,0.64742598,38059.0,38058.0,0.00109227]
[1646640688416,0.3529,38059.0,38058.0,0.00109227]
[1646640689617,0.3791,38059.0,38055.0,0.01340231]
[1646640690618,0.3791,38059.0,38055.0,0.07912331]
[1646640690819,0.00021087,38059.0,38055.0,0.15806836]
[1646640691022,0.00021087,38059.0,38056.0,0.955549]
[1646640691219,0.00021087,38059.0,38057.0,0.05]
[1646640691922,0.16619697,38063.0,38060.0,0.065703]
[1646640692351,0.26667894,38062.0,38057.0,0.05]
[1646640692553,0.26667894,38062.0,38056.0,0.05]
[1646640692750,0.36667894,38062.0,38055.0,0.00097091]
[1646640693151,0.16912151,38058.0,38055.0,0.00097091]
[1646640693353,0.3,38057.0,38055.0,0.00097091]
[1646640693553,0.16912151,38058.0,38055.0,0.00097091]
[1646640693751,0.0084,38057.0,38055.0,0.00097091]
[1646640693951,0.3084,38057.0,38055.0,0.00097091]
[1646640694152,0.1529,38056.0,38055.0,0.00097091]
[1646640694352,0.50094275,38056.0,38055.0,0.00097091]
[1646640694556,0.82714275,38056.0,38051.0,0.00137147]
[1646640694757,0.82714275,38056.0,38051.0,0.00037147]
[1646640694955,0.1262,38055.0,38051.0,0.00037147]
[1646640695152,0.0084,38053.0,38051.0,0.00037147]
[1646640695352,0.0529,38052.0,38051.0,0.00037147]
[1646640695553,0.52270044,38052.0,38051.0,0.00037147]
[1646640695754,0.63110044,38052.0,38051.0,0.00037147]
[1646640696008,0.69841765,38052.0,38051.0,0.00037147]
[1646640696410,0.81455765,38052.0,38051.0,0.00037147]
[1646640696605,0.91455765,38052.0,38051.0,0.00037147]
[1646640697606,0.19555565,38043.0,38041.0,0.00016615]
[1646640697808,0.19555565,38043.0,38031.0,0.21442683]
[1646640697809,0.0262,38041.0,38031.0,0.21442683]
[1646640698009,0.0262,38039.0,38029.0,0.21442683]
[1646640698223,0.0262,38037.0,38028.0,0.24217786]
[1646640698409,0.0262,38035.0,38026.0,0.21442683]
[1646640698710,0.0262,38035.0,38025.0,0.21442683]
[1646640698711,0.20291159,38033.0,38025.0,0.21442683]
[1646640698907,0.0529,38032.0,38025.0,0.21442683]
[1646640699110,0.0529,38032.0,38024.0,0.21442683]
[1646640699307,0.0529,38032.0,38027.0,0.00017944]
[1646640700148,0.3,38031.0,38027.0,0.00017944]
[1646640700348,0.3,38031.0,38023.0,0.0331876]
[1646640700349,0.0529,38031.0,38023.0,0.0331876]
[1646640700550,0.0529,38031.0,38028.0,0.00017944]
[1646640701453,0.0529,38031.0,38023.0,0.01314]
[1646640701649,0.0529,38031.0,38028.0,0.00017944]
[1646640702250,0.0529,38031.0,38029.0,0.392731]
[1646640702452,0.0529,38031.0,38028.0,0.06593944]
[1646640702453,0.0529,38031.0,38030.0,0.01176842]
[1646640703903,0.0529,38031.0,38030.0,0.42783404]
[1646640704102,0.0529,38039.0,38031.0,0.1587]
[1646640704302,0.1,38043.0,38031.0,0.1587]
[1646640704500,0.1,38043.0,38033.0,0.27864931]
[1646640704710,0.1,38044.0,38035.0,0.01215217]
[1646640704901,0.19338131,38042.0,38035.0,0.03240304]
[1646640705107,0.4,38044.0,38042.0,0.37887047]
[1646640705304,0.16374604,38043.0,38042.0,0.42887047]
[1646640705705,0.46374604,38043.0,38042.0,0.42887047]
[1646640706105,0.56374604,38043.0,38042.0,0.42887047]
[1646640706508,0.26374604,38043.0,38042.0,0.42887047]
[1646640707355,0.01314,38044.0,38042.0,0.42887047]
[1646640707562,0.11314,38045.0,38042.0,0.42887047]
[1646640707956,0.1,38045.0,38042.0,0.42887047]
[1646640708355,0.15764627,38044.0,38042.0,0.42887047]
[1646640708757,0.25764627,38044.0,38042.0,0.42887047]
[1646640708959,0.25714627,38044.0,38042.0,0.42887047]
[1646640709360,0.25959653,38044.0,38042.0,0.42887047]
[1646640709760,0.10245026,38044.0,38042.0,0.42887047]
[1646640709961,0.00245026,38044.0,38042.0,0.42887047]
[1646640710760,0.21094853,38044.0,38042.0,0.42887047]
[1646640711202,0.31094853,38044.0,38042.0,0.42887047]
[1646640712203,0.3484,38043.0,38042.0,0.37887047]
[1646640712402,0.4484,38043.0,38041.0,0.00016567]
[1646640712605,0.48045721,38042.0,38041.0,0.00016567]
[1646640712804,0.52885721,38042.0,38041.0,0.00016567]
[1646640713010,0.72885721,38042.0,38041.0,0.00016567]
[1646640713408,0.0262,38041.0,38032.0,0.0130675]
[1646640713603,0.26665561,38033.0,38032.0,0.0130675]
[1646640713803,0.31505561,38033.0,38032.0,0.0130675]
[1646640714305,0.41505561,38033.0,38032.0,0.0130675]
[1646640714509,0.41805561,38033.0,38032.0,0.0130675]
[1646640715570,0.1514,38033.0,38032.0,0.0130675]
[1646640715769,0.0484,38033.0,38032.0,0.0130675]
[1646640715974,0.1484,38033.0,38032.0,0.0130675]
[1646640716670,0.01314,38041.0,38033.0,0.115758]
[1646640716671,0.1,38039.0,38033.0,0.115758]
[1646640716871,0.117,38048.0,38035.0,0.16057985]
[1646640716872,0.19540118,38042.0,38035.0,0.16057985]
[1646640717270,0.1,38041.0,38036.0,0.01411851]
[1646640717670,0.01314,38046.0,38037.0,0.29449842]
[1646640717671,0.10245026,38044.0,38037.0,0.29449842]
[1646640717875,0.00245026,38044.0,38037.0,0.3177148]
[1646640718513,0.00245026,38044.0,38039.0,0.00016573]
[1646640718514,0.16551001,38044.0,38039.0,0.00016573]
[1646640719610,0.00545026,38044.0,38040.0,0.00016573]
[1646640719812,0.00245026,38044.0,38040.0,0.31028246]
[1646640720011,0.00245026,38044.0,38040.0,0.01028246]
[1646640720413,0.00245026,38044.0,38041.0,0.392731]
[1646640720614,0.00245026,38044.0,38040.0,0.01011673]
[1646640720811,0.00245026,38044.0,38041.0,0.00016573]
[1646640721010,0.00245026,38044.0,38041.0,0.17106233]
[1646640721210,0.00245026,38044.0,38041.0,0.22106233]
[1646640721812,0.00745026,38044.0,38041.0,0.2208966]
[1646640722014,0.00745026,38044.0,38041.0,0.22106245]
[1646640722268,0.00745026,38044.0,38041.0,0.05016585]
[1646640722660,0.00745026,38044.0,38041.0,0.00016585]
[1646640723061,0.00745026,38044.0,38040.0,0.01011673]
[1646640723265,0.00745026,38044.0,38041.0,0.00016585]
[1646640723666,0.00745026,38044.0,38041.0,0.17416732]
[1646640723865,0.00745026,38044.0,38041.0,0.22416732]
[1646640724263,0.00745026,38044.0,38041.0,0.22400147]
[1646640724464,0.005,38044.0,38041.0,0.35564132]
[1646640725162,0.005,38044.0,38041.0,0.22416732]
[1646640725563,0.005,38044.0,38041.0,0.22400147]
[1646640725769,0.005,38044.0,38041.0,0.22416729]
[1646640726012,0.005,38044.0,38041.0,0.05016582]
[1646640726213,0.005,38044.0,38041.0,0.00016582]
[1646640727312,0.28516923,38042.0,38041.0,0.00016582]
[1646640727714,0.4436404,38042.0,38041.0,0.00016582]
[1646640727910,0.5436404,38042.0,38040.0,0.01011673]
[1646640728111,0.5436404,38042.0,38040.0,0.01028256]
[1646640728314,0.1,38041.0,38040.0,0.01028256]
[1646640729110,0.1,38041.0,38040.0,0.01011673]
[1646640736016,0.16154,38041.0,38039.0,0.00016584]
[1646640736222,0.0262,38038.0,38029.0,0.02602193]
[1646640736417,0.8294,38034.0,38024.0,0.01550709]
[1646640736618,0.95572133,38030.0,38024.0,0.01550709]
[1646640736815,0.95572133,38030.0,38016.0,0.01054919]
[1646640736816,0.16066815,38017.0,38016.0,0.01054919]
[1646640737017,0.02632133,38017.0,38016.0,0.01054919]
[1646640737264,0.17472133,38017.0,38016.0,0.01054919]
[1646640737662,0.1484,38017.0,38016.0,0.01054919]
[1646640738263,0.0484,38017.0,38016.0,0.01054919]
[1646640738667,0.1484,38017.0,38016.0,0.01054919]
[1646640739070,0.4484,38017.0,38016.0,0.01054919]
[1646640739265,0.57472133,38017.0,38016.0,0.01054919]
[1646640739464,0.58787133,38017.0,38016.0,0.01294628]
[1646640739667,0.58787133,38017.0,38003.0,0.23732136]
[1646640739864,0.13935,38016.0,38004.0,0.01419362]
[1646640740064,0.15621073,38006.0,38004.0,0.01419362]
[1646640740267,0.0484,38005.0,38004.0,0.01419362]
[1646640740569,0.3484,38005.0,38004.0,0.01419362]
[1646640740765,0.2484,38005.0,38004.0,0.01419362]
[1646640741409,0.5484,38005.0,38004.0,0.01419362]
[1646640741610,0.2484,38005.0,38004.0,0.01419362]
[1646640741817,0.2484,38005.0,38002.0,0.065824]
[1646640741818,2.0032,38004.0,37993.0,0.61100005]
[1646640742007,0.02634387,38000.0,37994.0,0.01175]
[1646640742207,0.18008789,37999.0,37994.0,0.01175]
[1646640742407,0.02634352,37995.0,37994.0,0.01175]
[1646640742616,0.1484,37995.0,37994.0,0.01175]
[1646640743210,0.1,37998.0,37995.0,0.4183804]
[1646640744014,0.32297514,38000.0,37995.0,0.4841994]
[1646640744211,0.32297514,38000.0,37996.0,0.05]
[1646640744212,0.1,37999.0,37996.0,0.05]
[1646640744656,0.1,37999.0,37998.0,0.01402568]
[1646640745859,0.1,37999.0,37998.0,0.29441099]
[1646640746061,0.83924301,38016.0,37998.0,0.29441099]
[1646640746062,0.2,38004.0,37998.0,0.29441099]
[1646640746267,0.0484,38003.0,37999.0,0.02347116]
[1646640746460,0.0346,38012.0,38002.0,0.01291122]
[1646640746461,0.0484,38010.0,38002.0,0.01291122]
[1646640746664,0.1484,38010.0,38002.0,0.01291122]
[1646640746860,0.28496116,38009.0,38002.0,0.06291122]
[1646640747063,0.17091922,38005.0,38002.0,0.06291122]
[1646640747462,0.21931922,38005.0,38002.0,0.06267173]
[1646640747663,0.21931922,38005.0,38002.0,0.01267173]
[1646640748062,0.21113701,38004.0,38002.0,0.01267173]
[1646640748263,0.27022397,38003.0,38002.0,0.01267173]
[1646640748503,0.67022397,38003.0,38002.0,0.01267173]
[1646640748805,0.06584269,38002.0,37995.0,0.3968]
[1646640749004,0.3484,38001.0,37994.0,0.01170011]
[1646640749209,0.35,38000.0,37994.0,0.01170011]
[1646640749401,1.1516,37999.0,37994.0,0.01170011]
[1646640749604,0.06571607,37992.0,37987.0,0.065849]
[1646640749807,0.0484,37991.0,37987.0,0.065849]
[1646640750004,0.0484,37991.0,37989.0,0.01282164]
[1646640750205,0.1,37990.0,37989.0,0.01282164]
[1646640750403,0.1484,37990.0,37989.0,0.01282164]
[1646640750603,0.32495547,37990.0,37989.0,0.01282164]
[1646640750803,0.2484,37990.0,37989.0,0.01282164]
[1646640751004,0.179373,37990.0,37989.0,0.01282164]
[1646640751406,0.179373,37990.0,37988.0,0.00018174]
[1646640751407,1.2516,37990.0,37988.0,0.00018174]
[1646640751606,1.2032,37989.0,37988.0,0.00018174]
[1646640751807,1.2516,37989.0,37988.0,0.00018174]
[1646640752003,1.8532,37988.0,37981.0,0.02533572]
[1646640752268,0.8032,37983.0,37981.0,0.01]
[1646640752465,1.31891721,37982.0,37981.0,0.0001]
[1646640752665,1.31891721,37982.0,37971.0,0.02287485]
[1646640752666,0.75506721,37982.0,37971.0,0.02287485]
[1646640752863,0.68775,37982.0,37971.0,0.02287485]
[1646640753063,0.1,37975.0,37971.0,0.02287485]
[1646640753264,0.0484,37974.0,37972.0,0.2047019]
[1646640753763,0.0484,37974.0,37972.0,0.2547019]
[1646640753963,0.1,37979.0,37972.0,0.2547019]
[1646640754163,0.0484,37980.0,37972.0,0.2547019]
[1646640754369,0.1,37981.0,37979.0,0.15559524]
[1646640754566,0.0484,37984.0,37979.0,0.15559524]
[1646640754567,0.1484,37984.0,37980.0,0.02973809]
[1646640754763,0.0484,37984.0,37981.0,0.01450347]
[1646640756210,0.20173441,37983.0,37981.0,0.01450347]
[1646640756609,0.50173441,37983.0,37981.0,0.01450347]
[1646640756811,0.20173441,37983.0,37981.0,0.01450347]
[1646640758410,0.20173441,37983.0,37981.0,0.00950347]
[1646640759010,0.3,37982.0,37981.0,0.00950347]
[1646640759210,0.4,37982.0,37981.0,0.00950347]
[1646640759411,0.5,37982.0,37980.0,0.00020158]
[1646640759663,0.5484,37982.0,37980.0,0.00020158]
[1646640759862,0.5484,37982.0,37975.0,0.02010529]
[1646640759863,0.16551229,37977.0,37975.0,0.02010529]
[1646640760761,0.16751229,37977.0,37975.0,0.02010529]
[1646640760963,0.002,37977.0,37975.0,0.02010529]
[1646640761363,0.1,37983.0,37976.0,0.131707]
[1646640761761,0.1,37983.0,37976.0,0.181707]
[1646640762170,0.1,37983.0,37977.0,0.21495518]
[1646640762364,0.1,37983.0,37977.0,0.28080918]
[1646640763165,0.25584238,37985.0,37983.0,0.2]
[1646640763609,0.25584238,37985.0,37983.0,0.25]
[1646640763808,0.1,37984.0,37983.0,0.25]
[1646640764811,0.1484,37985.0,37983.0,0.25]
[1646640765008,0.1484,37985.0,37983.0,0.315851]
[1646640765209,0.1,37984.0,37983.0,0.315851]
[1646640766508,0.18390401,37989.0,37983.0,0.315851]
[1646640766709,0.1,37984.0,37983.0,0.58532505]
[1646640767010,0.24098943,37996.0,37983.0,0.58532505]
[1646640767011,0.06584378,37991.0,37983.0,0.58532505]
[1646640767256,0.06584378,37991.0,37983.0,0.51947405]
[1646640767257,0.1,37989.0,37983.0,0.51947405]
[1646640768059,0.16365997,37988.0,37983.0,0.51947405]
[1646640768461,0.1,37989.0,37983.0,0.51947405]
[1646640768661,0.002,37988.0,37983.0,0.51947405]
[1646640769261,0.002,37988.0,37983.0,0.58531505]
[1646640769460,0.002,37988.0,37985.0,0.01450985]
[1646640769861,0.29449192,37989.0,37985.0,0.01450985]
[1646640770063,0.1,37989.0,37985.0,0.01450985]
[1646640770661,0.101,37989.0,37985.0,0.01450985]
[1646640772006,0.1,37989.0,37985.0,0.01450985]
[1646640773910,0.1,37989.0,37985.0,0.13035485]
[1646640774110,0.1,37989.0,37985.0,0.06450985]
[1646640774307,0.1,37987.0,37985.0,0.06450985]
[1646640774510,0.3,37990.0,37985.0,0.01450985]
[1646640774511,0.1,37986.0,37985.0,0.01450985]
[1646640776660,0.10136493,37986.0,37985.0,0.01450985]
[1646640776862,0.004,37986.0,37985.0,0.01450985]
[1646640777263,0.104,37986.0,37985.0,0.01450985]
[1646640777865,0.1,37986.0,37985.0,0.01450985]
[1646640778267,0.1,37986.0,37985.0,0.30450273]
[1646640778518,0.1,37989.0,37985.0,0.60450273]
[1646640778818,0.1,37989.0,37986.0,0.397292]
[1646640779014,0.01315,37997.0,37987.0,0.431664]
[1646640779215,0.1,37993.0,37991.0,0.065832]
[1646640780115,0.0084,37996.0,37992.0,0.32633]
[1646640780318,0.0084,37996.0,37994.0,0.1998]
[1646640780713,0.0084,37996.0,37991.0,0.065832]
[1646640780714,0.0084,37996.0,37995.0,0.05]
[1646640780914,0.0084,37996.0,37995.0,0.2498]
[1646640781217,0.0084,37996.0,37995.0,0.05]
[1646640781218,0.17571721,37996.0,37995.0,0.05]
[1646640781415,0.17479469,37987.0,37985.0,0.065854]
[1646640781615,0.3,37986.0,37985.0,0.065854]
[1646640781815,0.2,37986.0,37985.0,0.065854]
[1646640782014,0.2,37986.0,37985.0,0.060854]
[1646640782280,0.2084,37986.0,37985.0,0.060854]
[1646640782674,0.2114,37986.0,37985.0,0.060854]
[1646640782876,0.2114,37986.0,37985.0,0.055854]
[1646640783075,0.003,37986.0,37985.0,0.055854]
[1646640783877,0.103,37986.0,37985.0,0.055854]
[1646640784075,0.1,37986.0,37985.0,0.055854]
[1646640784676,0.102,37986.0,37985.0,0.055854]
[1646640784875,0.16931721,37986.0,37984.0,0.05]
[1646640785077,0.06731721,37985.0,37984.0,0.05]
[1646640785277,0.36738349,37985.0,37984.0,0.05]
[1646640785482,0.36738349,37985.0,37983.0,0.25]
[1646640785679,0.06731721,37984.0,37983.0,0.25]
[1646640785918,0.16731721,37984.0,37983.0,0.25]
[1646640786515,0.22001721,37984.0,37983.0,0.25]
[1646640786719,0.40377721,37984.0,37983.0,0.2]
[1646640787115,0.69648245,37984.0,37978.0,0.00016415]
[1646640787316,0.06731721,37980.0,37978.0,0.00016415]
[1646640787519,0.38168852,37979.0,37978.0,0.00016415]
[1646640787717,0.48168852,37979.0,37978.0,0.00016415]
[1646640787914,0.58168852,37979.0,37978.0,0.00016415]
[1646640788120,0.58168852,37979.0,37971.0,0.01]
[1646640788422,0.1084,37978.0,37977.0,0.00016416]
[1646640788618,0.24156721,37978.0,37977.0,0.00016416]
[1646640788820,0.53490524,37982.0,37977.0,0.15016416]
[1646640788821,0.1,37982.0,37977.0,0.15016416]
[1646640789022,0.197615,37996.0,37981.0,0.15]
[1646640789023,0.1,37984.0,37981.0,0.15]
[1646640789217,0.1,37984.0,37982.0,0.3]
[1646640789420,0.1,37988.0,37982.0,0.35]
[1646640789657,0.1,37988.0,37983.0,0.01222885]
[1646640789859,0.02717356,37999.0,37983.0,0.01222885]
[1646640789860,0.36154318,37989.0,37983.0,0.01222885]
[1646640790258,0.36154318,37989.0,37983.0,0.00214375]
[1646640790259,0.1,37984.0,37983.0,0.00214375]
[1646640790461,0.1527,37984.0,37983.0,0.00214375]
[1646640790660,1.22633,37983.0,37971.0,0.01]
[1646640790860,0.67285193,37972.0,37971.0,0.01]
[1646640791060,0.67285193,37972.0,37971.0,0.02544727]
[1646640791061,0.86093193,37972.0,37971.0,0.02544727]
[1646640791258,0.95862193,37972.0,37971.0,0.02544727]
[1646640791661,1.05862193,37972.0,37971.0,0.02544727]
[1646640791859,1.05862193,37972.0,37962.0,0.263471]
[1646640791860,0.16170159,37964.0,37962.0,0.263471]
[1646640792160,0.16170159,37964.0,37961.0,0.065902]
[1646640792161,0.1,37963.0,37961.0,0.065902]
[1646640792359,0.31099754,37962.0,37961.0,0.065902]
[1646640792563,0.60706754,37962.0,37955.0,0.21381085]
[1646640792763,0.60706754,37962.0,37951.0,0.22381085]
[1646640792764,0.92953,37961.0,37951.0,0.22381085]
[1646640792960,1.1559,37960.0,37951.0,0.01]
[1646640793165,0.1,37952.0,37951.0,0.01]
[1646640793409,0.3787875,37952.0,37951.0,0.01]
[1646640793607,0.32263147,37952.0,37951.0,0.01]
[1646640793807,0.42263147,37952.0,37951.0,0.01]
[1646640794410,0.54329611,37952.0,37951.0,0.01]
[1646640794609,0.47326464,37952.0,37951.0,0.01]
[1646640794910,0.47726464,37952.0,37951.0,0.01]
[1646640795109,0.77726464,37952.0,37951.0,0.01]
[1646640795311,0.67726464,37952.0,37951.0,0.01]
[1646640795911,0.87726464,37952.0,37951.0,0.01]
[1646640796110,0.87326464,37952.0,37951.0,0.01]
[1646640796511,0.93840087,37952.0,37951.0,0.01]
[1646640796709,0.94140087,37952.0,37951.0,0.01]
[1646640797156,0.52694332,37952.0,37951.0,0.01]
[1646640797457,0.52694332,37952.0,37951.0,0.03845083]
[1646640797458,0.2029,37952.0,37951.0,0.03845083]
[1646640797657,0.1,37956.0,37951.0,0.03845083]
[1646640797860,0.46586,37961.0,37952.0,0.6087]
[1646640798060,0.1,37955.0,37952.0,0.6087]
[1646640798260,0.1,37955.0,37953.0,0.05]
[1646640798556,0.1,37955.0,37953.0,0.115907]
[1646640798557,0.16025956,37955.0,37953.0,0.115907]
[1646640799157,0.1,37955.0,37953.0,0.115907]
[1646640799560,0.1,37957.0,37953.0,0.115907]
[1646640799762,0.1,37957.0,37953.0,0.247712]
[1646640799959,0.1,37958.0,37953.0,0.247712]
[1646640800260,0.1,37958.0,37955.0,0.1883769]
[1646640800460,0.1,37959.0,37956.0,0.02055112]
[1646640800908,0.0999,37960.0,37956.0,0.02055112]
[1646640801312,0.35661551,37960.0,37956.0,0.02055112]
[1646640801518,0.35661551,37960.0,37956.0,0.02073183]
[1646640801708,0.19479306,37958.0,37956.0,0.02073183]
[1646640801907,0.3527,37957.0,37956.0,0.02073183]
[1646640802509,0.3527,37957.0,37956.0,0.02055112]
[1646640802711,0.4557,37957.0,37956.0,0.02055112]
[1646640803012,0.1557,37957.0,37956.0,0.02055112]
[1646640803913,0.003,37957.0,37956.0,0.02055112]
[1646640804211,0.1,37959.0,37956.0,0.02055112]
[1646640804864,0.003,37957.0,37956.0,0.02055112]
[1646640805061,0.003,37957.0,37956.0,0.02071125]
[1646640806064,0.05901981,37958.0,37956.0,0.02055112]
[1646640807762,0.1,37959.0,37956.0,0.02055112]
[1646640808163,0.1,37959.0,37957.0,0.065902]